Cogmind - Beta 15 @@@ ROGUE MODE // 2025.09.14 @ 11:09:53 Player: xgames Result: Destroyed by Autobeam Turret with Autobeam Performance ------------- Evolutions (0) 0 Regions Visited (3) 600 Robots Destroyed (20) 100 Value Destroyed (477) 477 Prototype IDs (0) 0 Alien Tech Used (0) 0 Bonus (0) 0 TOTAL SCORE: 1177 Bonus ------- None Cogmind --------- Core Integrity 0/250 Matter 274/300 Energy 100/100 System Corruption 2% Temperature Cool (6) Movement Rolling (200) Ox8 Location -10/Subcaves Parts ------- > --- POWER (1) -------- (None) > --- PROPULSION (2) --- Light Treads (fused) Wheel > --- UTILITY (2) ------ Heat Sink Huge Storage Unit > --- WEAPON (2) ------- Medium Laser (fused) Rocket Launcher > --- INVENTORY (25) --- Ion Engine Ion Engine Light Ion Engine Light Treads Medium Battery (150) Structural Scanner Beam Cannon Light Assault Rifle Peak State ------------ > --- POWER ------------ Light Nuclear Core > --- PROPULSION ------- Light Treads Wheel > --- UTILITY ---------- Heat Sink Huge Storage Unit > --- WEAPON ----------- Medium Laser Rocket Launcher > --- INVENTORY -------- Ion Engine Ion Engine Light Ion Engine Light Treads Medium Battery Structural Scanner Beam Cannon Light Assault Rifle [Rating: 10] Favorites ----------- Power Light Nuclear Core Engine Light Ion Engine Power Core Light Nuclear Core Propulsion Light Treads Treads Light Treads Wheel Wheel Utility Structural Scanner Device Structural Scanner Storage Huge Storage Unit Weapon Beam Cannon Energy Gun Medium Laser Energy Cannon Beam Cannon Ballistic Gun Light Assault Rifle Launcher Rocket Launcher Build | -11 -10 -10 -10 ------- Run | Yrd Mat Min Sub Slots Evolved . | . . . . Power . | . . . . Propulsion . | . . . . Utility . | . . . . Weapon . | . . . . Parts Attached 18 | 9 6 2 1 Power 3 | 1 2 . . Engine 2 | 1 1 . . Core 1 | . 1 . . Reactor . | . . . . Propulsion 4 | 3 . 1 . Treads 2 | 2 . . . Leg . | . . . . Wheel 2 | 1 . 1 . Hover . | . . . . Flight . | . . . . Utility 5 | 2 2 1 . Device 3 | 1 1 1 . Storage 2 | 1 1 . . Processor . | . . . . Hackware . | . . . . Protection . | . . . . Artifact . | . . . . Weapon 6 | 3 2 . 1 Energy Gun 3 | 2 1 . . Energy Cannon 1 | . 1 . . Ballistic Gun 1 | 1 . . . Ballistic Cannon . | . . . . Launcher 1 | . . . 1 Special Weapon . | . . . . Impact Weapon . | . . . . Slashing Weapon . | . . . . Piercing Weapon . | . . . . Special Melee Weapon . | . . . . Unidentified Prototypes . | . . . . Corrupted Parts 1 | . 1 . . System Corruption 2 | . 2 . . Parts Lost 4 | . 2 1 1 Power 1 | . . . 1 Propulsion 1 | . 1 . . Utility 1 | . . 1 . Weapon 1 | . 1 . . Highest Loss Streak 1 | . 1 1 1 To Critical Strikes . | . . . . Average Backups 7 | 3 7 7 8 Power 1 | . 1 2 3 Propulsion 1 | 2 1 . 1 Utility 2 | . 3 2 2 Weapon 1 | . 1 1 2 Tool/Special . | . . . . Unused Backups 5 | . 1 . 4 Power 2 | . . . 2 Propulsion 1 | . 1 . . Utility 2 | . . . 2 Weapon . | . . . . Tool/Special . | . . . . Average Slot Usage (%) 98 | . 100 97 92 Engine 6 | . 11 . . Core 7 | . 2 14 7 Treads 21 | . 21 23 14 Wheel 6 | . 6 4 14 Device 13 | . 14 12 14 Storage 14 | . 14 14 14 Energy Gun 14 | . 14 14 14 Energy Cannon 10 | . 8 13 7 Ballistic Gun 3 | . 5 . . Peak Build Rating 10 | 9 9 9 10 Average Rating 7 | 5 7 8 8 On Entrance 6 | . 9 9 9 Naked Turns . | . . . . Heaviest Build 91 | 11 91 91 91 Greatest Support 40 | 40 40 40 10 Greatest Overweight (x) 9 | 1 2 9 9 Average Overweight (x) 1 | . . 4 9 Largest Inventory Capacity 25 | 8 25 25 25 Average Capacity 16 | 7 12 25 25 Most Carried 9 | 5 9 9 8 Average Carried 7 | 3 7 7 8 Final Capacity 25 | 8 25 25 25 Final Carried 8 | 4 7 8 8 Class Distribution -------------------- 100% | Mutant Dominant Class ---------------- Mutant | -10/Materials Mutant | -10/Mines Mutant | -10/Subcaves Resources | -11 -10 -10 -10 ----------- Run | Yrd Mat Min Sub Matter Collected 483 | 222 172 89 . Remotely . | . . . . Salvage Created 595 | 47 403 129 16 Parts 34 | 4 25 3 2 Haulers Intercepted . | . . . . Recyclers Shooed 2 | . 2 . . Parts Field Recycled . | . . . . Retrieved Matter . | . . . . Parts Self-Destructed . | . . . . Prevented . | . . . . Kills | -11 -10 -10 -10 ------- Run | Yrd Mat Min Sub Combat Hostiles Destroyed 15 | . 9 3 3 Guns 5 | . 4 1 . Cannons 5 | . 4 1 . AOE 4 | . 1 . 3 Classes Destroyed 5 | 1 4 . . Worker 1 | . 1 . . Tunneler 3 | 3 . . . Watcher 1 | . 1 . . Swarmer 5 | . 2 . 3 Grunt 10 | . 7 3 . Best Kill Streak 3 | 2 3 2 3 Combat Bots Only 3 | . 3 2 3 Max Kills in Single Turn 3 | 1 3 1 3 Gunslinging . | . . . . Exploded 3 | . 1 . 3 Melee . | . . . . Uniques/NPCs Destroyed . | . . . . Combat | -11 -10 -10 -10 -------- Run | Yrd Mat Min Sub Hostile Shots Fired 107 | . 38 31 38 Missed 31 | . 7 7 17 Hits 76 | . 31 24 21 Projectile 76 | . 31 24 21 Critical Strikes 1 | . 1 . . Damage Taken 821 | . 396 297 128 Core 250 | . 98 108 44 Absorbed by Shields . | . . . . Core Remaining (%) 100 | 100 . . . Volleys Fired 70 | 14 35 20 1 Largest 2 | 2 2 2 2 Hottest 110 | 90 110 110 83 Shots Fired 114 | 17 55 40 2 Gun 89 | 17 41 30 1 Cannon 24 | . 14 10 . Launcher 1 | . . . 1 Special . | . . . . Kinetic 34 | 13 11 10 . Thermal 55 | 4 20 30 1 Explosive 1 | . . . 1 Electromagnetic 24 | . 24 . . Robot Hit Streak 6 | 5 6 6 . Robot Miss Streak 3 | 1 3 2 2 Penetration Max . | . . . . Secondary Targets . | . . . . Shots Hit Robots 76 | 12 36 28 . Core Hits 28 | 5 16 5 2 Critical Kills . | . . . . Critical Parts Destroyed . | . . . . Critical Strikes 1 | . . 1 . Burn 1 | . . 1 . Melee Attacks . | . . . . Impact . | . . . . Slashing . | . . . . Piercing . | . . . . Sneak Attacks . | . . . . Combat Hostiles . | . . . . Follow-up Attacks . | . . . . Damage Inflicted 1235 | 108 568 358 201 Guns 645 | 108 300 237 . Cannons 300 | . 179 121 . Explosions 287 | . 86 . 201 Melee . | . . . . Ramming 3 | . 3 . . Kinetic 203 | 85 54 64 . Thermal 635 | 23 318 294 . Explosive 201 | . . . 201 Electromagnetic 193 | . 193 . . Impact . | . . . . Slashing . | . . . . Piercing . | . . . . Highest Corruption 2 | . 2 2 2 Average Corruption 2 | . 2 2 2 Corruption Purged . | . . . . Corruption Blocked . | . . . . Effects 16 | . 3 13 . Message Errors 3 | . 1 2 . Matter Fused 2 | . . 2 . Heat Flow Errors 2 | . . 2 . Energy Discharges 4 | . 1 3 . Parts Rejected 1 | . . 1 . Parts Fused 3 | . 1 2 . Data Loss (minor) 1 | . . 1 . Overload Shots . | . . . . Overflow Damage 60 | . 16 . 44 Projectiles . | . . . . Explosions 60 | . 16 . 44 Melee . | . . . . Knockbacks . | . . . . Impact . | . . . . Kinetic . | . . . . Secondary . | . . . . Self-Inflicted Damage 50 | . 50 . . Shots 1 | . 1 . . Rammed 2 | . 2 . . Targets Rammed 2 | . 2 . . Kicked . | . . . . Crushed . | . . . . Highest Temperature 467 | 30 372 467 . Average Temperature 175 | 16 110 251 . Received Heat Transfer 360 | . 150 162 48 Effects 5 | . 3 2 . Shutdowns 1 | . 1 . . Energy Bleed 2 | . 2 . . Matter Decay 1 | . . 1 . Damage (minor) 1 | . . 1 . Siege Activations . | . . . . Martial Activations . | . . . . Shielding Activations . | . . . . Robots Disrupted . | . . . . Combat Hostiles . | . . . . Robots Corrupted . | . . . . Combat Hostiles . | . . . . Parts Fried . | . . . . Impact Corruptions . | . . . . Robots Melted 1 | . . 1 . Combat Hostiles 1 | . . 1 . Parts Melted 3 | . . 3 . Heat Transferred 1494 | 62 618 814 . Parts Sabotaged . | . . . . Parts Stolen . | . . . . Parts Stripped . | . . . . Power Chain Reactions 1 | . 1 . . Alert | -11 -10 -10 -10 ------- Run | Yrd Mat Min Sub Maximum Alert Level . | . . . . Low Security (%) 100 | 100 100 100 . Level 1 . | . . . . Level 2 . | . . . . Level 3 . | . . . . Level 4 . | . . . . Level 5 . | . . . . High Security . | . . . . Max Security . | . . . . Peak Influence 67 | 5 67 57 . Initial 3 | . 3 . . Average 14 | . 20 8 . Influence Increases 464 | 15 289 85 75 Destroy 0b10 Robot/C 300 | . 180 60 60 Destroy 0b10 Robot/NC 25 | 15 10 . . Destroy Leader 42 | . 32 10 . Successful Hack 16 | . 16 . . Disable Machine 15 | . . 15 . Destroy Structure 6 | . 6 . . Lose Combat Pursuer 60 | . 45 . 15 Influence Decreases 399 | 10 294 85 10 Entered New Map 2 | . 2 . . Time Decay 367 | 10 282 75 . Lost Part 30 | . 10 10 10 Squads Dispatched 1 | . 1 . . Investigation . | . . . . Extermination . | . . . . Reinforcement 1 | . 1 . . Assault . | . . . . Garrison . | . . . . Intercept . | . . . . Searches Triggered . | . . . . Construction Impeded . | . . . . Haulers Reinforced . | . . . . Active Scanning Responses . | . . . . Cargo Convoy Interrupts . | . . . . Stealth | -11 -10 -10 -10 --------- Run | Yrd Mat Min Sub Distress Signals 1 | . 1 . . Communications Jammed . | . . . . Distress Signals . | . . . . Times Spotted 31 | . 21 3 7 Peak Tracking Total 6 | . 5 3 6 Tactical Retreats 3 | . 2 . 1 Traps | -11 -10 -10 -10 ------- Run | Yrd Mat Min Sub Traps Triggered . | . . . . Indirectly . | . . . . Trap Hack Attempts . | . . . . Triggered . | . . . . Disarmed . | . . . . Reprogrammed . | . . . . Reused . | . . . . Traps Extracted . | . . . . Installed . | . . . . Triggered . | . . . . Machines | -11 -10 -10 -10 ---------- Run | Yrd Mat Min Sub Machines Disabled 1 | . . 1 . Max in Single Turn 1 | . . 1 . Machines Repaired . | . . . . Machines Dismantled . | . . . . Machines Sabotaged . | . . . . Overloaded Fab Kills . | . . . . Hacking | -11 -10 -10 -10 --------- Run | Yrd Mat Min Sub Machines Accessed 6 | . 6 . . Terminals 6 | . 6 . . Fabricators . | . . . . Repair Stations . | . . . . Recycling Units . | . . . . Scanalyzers . | . . . . Garrison Access . | . . . . Total Hacks 14 | . 14 . . Successful 4 | . 4 . . Failed 10 | . 10 . . Catastrophic 5 | . 5 . . Database Lockouts . | . . . . Manual 12 | . 12 . . Terminals 14 | . 14 . . Fabricators . | . . . . Repair Stations . | . . . . Recycling Units . | . . . . Scanalyzers . | . . . . Garrison Access . | . . . . Terminal Hacks 4 | . 4 . . Robot Analysis 2 | . 2 . . Dispatch Records 1 | . 1 . . Hauler Manifests 1 | . 1 . . Fabricator Hacks . | . . . . Repair Station Hacks . | . . . . Recycling Unit Hacks . | . . . . Scanalyzer . | . . . . Garrison Access Hacks . | . . . . Unauthorized Hacks . | . . . . Terminals . | . . . . Fabricators . | . . . . Repair Stations . | . . . . Recycling Units . | . . . . Scanalyzers . | . . . . Garrison Access . | . . . . Data Cores Recovered . | . . . . Used . | . . . . Hacking Detections 6 | . 6 . . Full Trace Events 1 | . 1 . . Feedback Events . | . . . . Feedback Blocked . | . . . . Robot Schematics Acquired . | . . . . Robots Built . | . . . . Authchips . | . . . . Time . | . . . . Total Robot Build Rating . | . . . . Part Schematics Acquired . | . . . . Parts Built . | . . . . Authchips . | . . . . Time . | . . . . Total Part Build Rating . | . . . . Parts Repaired . | . . . . Time . | . . . . Parts Recycled . | . . . . Recycled Matter . | . . . . Retrieved Matter . | . . . . Retrieved Components . | . . . . Parts Scanalyzed . | . . . . Part Schematics Acquired . | . . . . Parts Damaged . | . . . . Bothacking | -11 -10 -10 -10 ------------ Run | Yrd Mat Min Sub Used RIF Installer . | . . . . Robots Hacked . | . . . . Non-combat . | . . . . Combat . | . . . . Robot Hacks Applied . | . . . . Relay Couplers Released . | . . . . Fabnet Peak Effective % . | . . . . Robots Rewired . | . . . . Allies Hacked . | . . . . Hacks Repelled . | . . . . Allies | -11 -10 -10 -10 -------- Run | Yrd Mat Min Sub Total Allies . | . . . . Largest Group . | . . . . Highest-Rated Group . | . . . . Highest-Rated Ally . | . . . . Total Orders . | . . . . Ally Attacks . | . . . . Total Damage . | . . . . Kills . | . . . . Allies Corrupted . | . . . . Allies Melted . | . . . . Intel | -11 -10 -10 -10 ------- Run | Yrd Mat Min Sub Active Infowar (turns) 1535 | 11 1057 467 . Terrain 19 | 11 8 . . Structural 1516 | . 1049 467 . Robot Analysis Total 2 | . 2 . . Derelict Logs Recovered 1 | . . 1 . Drone Launches . | . . . . Drone Recoveries . | . . . . Exploration | -11 -10 -10 -10 ------------- Run | Yrd Mat Min Sub Turns Passed 1930 | 178 1057 685 10 Spaces Moved 953 | 131 593 226 3 Core 12 | 12 . . . Treads 517 | 25 361 131 . Legs . | . . . . Wheels 424 | 94 232 95 3 Hover . | . . . . Flight . | . . . . Fastest Speed 50 | 50 95 200 215 Average Speed 176 | 97 156 273 215 Slowest Speed 320 | 160 320 320 215 Overloaded Moves . | . . . . Propulsion Burnouts . | . . . . Robots Hopped . | . . . . Potential Cave-ins . | . . . . Cave-ins Triggered . | . . . . Exploration Rate (%) 35 | 5 67 66 2 Regions Visited 3 Branch Regions 2 Pre-discovered Areas . | . . . . Known Exits Taken . | . . . . Unknown Exits Taken 3 | 1 1 1 . Scrap Searched 1 | . . 1 . Spaces Dug . | . . . . Terrain Destroyed 15 | . 8 . 7 Melee . | . . . . Projectile . | . . . . AOE 15 | . 8 . 7 Terrain Rammed . | . . . . Walls Destroyed . | . . . . Machines Disabled . | . . . . Actions | -11 -10 -10 -10 --------- Run | Yrd Mat Min Sub Total 1097 | 165 672 255 5 Wait 21 | . 18 3 . Move 950 | 130 592 225 3 Hop . | . . . . Pick Up 25 | 11 11 3 . Fast Attach . | . . . . Attach 11 | 7 2 2 . Detach . | . . . . Swap 12 | 3 6 2 1 Drop 6 | . 6 . . Fire 70 | 14 35 20 1 Melee . | . . . . Ram . | . . . . Kick . | . . . . Crush 2 | . 2 . . Escape Stasis . | . . . . Rewire . | . . . . Trap . | . . . . Miscellaneous . | . . . . Route ------- -11/Scrapyard -10/Materials (discovered 2 exits: [*Min x2]) -10/Mines (discovered 2 exits: [*Mat] / [*Sub]) -10/Subcaves (discovered 1 exit: [*Rec]) History --------- Turn | Location | Event 21 | -11/Scrapyard | Discovered new exit (range 15) 179 | -11/Scrapyard | Entered Materials 303 | -10/Materials | Build established: Mutant 541 | -10/Materials | Discovered new exit (range 9) 855 | -10/Materials | Discovered new exit (range 13) 1236 | -10/Materials | Entered Mines 1381 | -10/Mines | Received a Rocket Launcher from a helpful Derelict 1671 | -10/Mines | Core integrity fell below 50% 1710 | -10/Mines | Core integrity fell below 20% 1737 | -10/Mines | Discovered new exit (range 13) 1917 | -10/Mines | Discovered new exit (range 3) 1921 | -10/Mines | Entered Subcaves 1921 | -10/Subcaves | Discovered new exit (range 11) 1922 | -10/Subcaves | Approached by a straggling Scientist 1931 | -10/Subcaves | Destroyed by Autobeam Turret with Autobeam Last Messages --------------- 01908_ System corrupted: Component data lost. 01911_ T-07 Excavator is excavating. 01917_ EXIT=FOUND 01920_ T-07 Excavator is excavating. LOCATION=UNKNOWN AMBIENT_HEAT=-10 GOAL=ESCAPE 01921_ EXIT=FOUND 01922_ 3O-M20(c): "Thank the algorithms! I was beginning to lose hope I'd never make it past all the Subs lurking out here." 01923_ S-10 Pest springs to life. 01925_ 3O-M20(c): "Hey, let me tag along and I can get us both out of this nasty situation. At least I think I can... The group I got separated from was talking about a shortcut back to the UFD." 01929_ Destroyed Lgt. Ion Engine. 01929_ S-10 Pest destroyed. 01929_ Destroyed Flight Unit. 01929_ Lgt. Nuclear Core destroyed. 01930_ XK-3M6(z): "She is not going to be happy we haven't found any suitable candidates yet." Map ----- +----------------------------------------------------+ | ?????????????????????????????????????????????????? | | ?????????????????????????????????????????????????? | | ?????????????????????????????????????????????????? | | ?????????????????????????????????????????????????? | | ?????????????????????????????????????????????????? | | ?????????????????????????????????????????????????? | | ?????????????????????????????????????????????????? | | ?????????????????????????????????????????????????? | | ?????????????????????????????????????????????????? | | ?????????????????????????????????????????????????? | | ?????????????????????????????????????????????????? | | ?????????????????????????????????????????????????? | | ?????????????????????????????????????????????????? | | ???????????????????????????##????????????????????? | | ??????????????????????????? ### ?????????????????? | | ??????????????????????????? ?????????????????? | | ??????????????????????????? ??????????????????? | | ?????????????????????????? ???????????????????? | | ?????????????????????????? ???????????????????? | | ?????????????????????????? ????????????????????? | | ?????????????????????????? ##???????????????????? | | ??????????????????????###? #???????????????????? | | ????????????????????### ## #???????????????????? | | ?????????????#??????# #????????????????????? | | ?????????????#""?????# #????????????????????? | | ?????????????#" ???# @ #????????????????????? | | ?????????????#" #????????????????????? | | ?????????????#""t %s #????????????????????? | | ????????????#< %[ #????????????????????? | | ????????????##""t %[ #????????????????????? | | ?????????????#" #????????????????????? | | ?????????????#" ???????????????????? | | ?????????????#""" "## ?????????????????? | | ?????????????#######?### #???????????????? | | ???????????????????????## ## #???????????????? | | ????????????????????????? #?# #???????????????? | | ????????????????????????? ?? #???????????????? | | ????????????????????????? ??? #???????????????? | | ????????????????????????? ?? ##???????????????? | | ?????????????????????????# ????????????????????? | | ?????????????????????????? ???????????????????? | | ?????????????????????????? ???????????????????? | | ??????????????????????????? ?????????????????????? | | ?????????????????????????????????????????????????? | | ?????????????????????????????????????????????????? | | ?????????????????????????????????????????????????? | | ?????????????????????????????????????????????????? | | ?????????????????????????????????????????????????? | | ?????????????????????????????????????????????????? | | ?????????????????????????????????????????????????? | +----------------------------------------------------+ Best States ------------- Heat Dissipation 35 Energy Generation 14 Energy Capacity 250 Matter Stores 300 Matter Capacity 300 Sight Range 16 Terrain Scan Range 16 Terrain Scan Density 10 Evasion (%) 44 Recoil Reduction 2 Item Schematics ----------------- None Robot Schematics ------------------ None Fabricated ------------ Nothing Repaired ---------- Nothing Alien Tech Used ----------------- None Achievements -------------- None Challenges ------------ None Game ------ Seed InsulatedBurstTendrils Manual? 0 Play Time 00:14:30 Cumulative 10.6 hours Start 2025.09.14 @ 10:54:12 End 2025.09.14 @ 11:09:53 Sessions 1 Manual Loads 0 Difficulty Rogue Special Mode None Game No. 20 Rogue 20 Adventurer 0 Explorer 0 Win Type - Total 0 Types 0/0/0/0/0/0/0/0/0/0 Lore% 8 Gallery% 15 Achievement% 16 Wizard Run 0 Options --------- Layout 1 ASCII 0 Keyboard 0 Movement Mouse Keybinds 0 Fullscreen 1 Font 24/Smallcaps Map View 76x35 Zoom Use 0% Tactical HUD 1 Map Filters NONE Filters NONE Steam 1 RUN: 43dfc6d2-c263-4d3d-8b46-80223b0db13b